[Event "Titled Tuesday Blitz March 21 Early 2023"]
[White "Durarbayli, Vasif"]
[Black "Itgelt, Khuyagtsogt"]
[WhiteFideId "13402935"]
[BlackFideId "4902912"]
[WhiteElo "2543"]
[BlackElo "2227"]
[Result "1-0"]
[Round "04"]
[TimeControl "180+2"]
[Date "2023.03.21"]
[WhiteClock "0:00:04"]
[BlackClock "0:00:02"]

1. e4 {[%clk 0:03:00]}  e5 {[%clk 0:02:56]} 2. Nf3 {[%clk 0:02:59]}  Nc6 {[%clk 0:02:57]} 3. d4 {[%clk 0:02:59]}  exd4 {[%clk 0:02:57]} 4. Nxd4 {[%clk 0:03:00]}  Nf6 {[%clk 0:02:56]} 5. Nxc6 {[%clk 0:03:01]}  bxc6 {[%clk 0:02:56]} 6. e5 {[%clk 0:03:01]}  Qe7 {[%clk 0:02:56]} 7. Qe2 {[%clk 0:03:01]}  Nd5 {[%clk 0:02:56]} 8. h4 {[%clk 0:03:01]}  a5 {[%clk 0:02:56]} 9. c4 {[%clk 0:02:59]}  Nb6 {[%clk 0:02:55]} 10. b3 {[%clk 0:02:48]}  Qe6 {[%clk 0:02:54]} 11. Bb2 {[%clk 0:02:43]}  a4 {[%clk 0:02:43]} 12. g3 {[%clk 0:02:32]}  Bb4+ {[%clk 0:02:39]} 13. Kd1 {[%clk 0:02:24]}  a3 {[%clk 0:02:06]} 14. Bc3 {[%clk 0:02:23]}  Qe7 {[%clk 0:02:02]} 15. h5 {[%clk 0:02:14]}  h6 {[%clk 0:01:55]} 16. Rh4 {[%clk 0:02:08]}  Ra5 {[%clk 0:01:44]} 17. Re4 {[%clk 0:01:47]}  O-O {[%clk 0:01:30]} 18. Bxb4 {[%clk 0:01:39]}  Qxb4 {[%clk 0:01:31]} 19. Qd2 {[%clk 0:01:39]}  Qxd2+ {[%clk 0:01:19]} 20. Nxd2 {[%clk 0:01:33]}  d6 {[%clk 0:01:19]} 21. exd6 {[%clk 0:01:14]}  cxd6 {[%clk 0:01:20]} 22. Be2 {[%clk 0:01:14]}  Nd7 {[%clk 0:01:02]} 23. b4 {[%clk 0:01:10]}  Ra4 {[%clk 0:01:02]} 24. Rb1 {[%clk 0:01:06]}  Ne5 {[%clk 0:00:40]} 25. Rb3 {[%clk 0:01:00]}  Bf5 {[%clk 0:00:38]} 26. Rd4 {[%clk 0:00:41]}  Rb8 {[%clk 0:00:30]} 27. f4 {[%clk 0:00:24]}  Ng4 {[%clk 0:00:28]} 28. Rxd6 {[%clk 0:00:17]}  Raxb4 {[%clk 0:00:27]} 29. Kc1 {[%clk 0:00:13]}  c5 {[%clk 0:00:14]} 30. Rd5 {[%clk 0:00:12]}  Rxb3 {[%clk 0:00:03]} 31. Nxb3 {[%clk 0:00:13]}  Be6 {[%clk 0:00:02]} 32. Rxc5 {[%clk 0:00:06]}  Ne3 {[%clk 0:00:02]} 33. Kd2 {[%clk 0:00:04]}  Nf5 {[%clk 0:00:01]} 34. g4 {[%clk 0:00:03]}  Nd6 {[%clk 0:00:01]} 35. f5 {[%clk 0:00:04]}  Ne4+ {[%clk 0:00:02]} 36. Kc1 {[%clk 0:00:01]}  Nxc5 {[%clk 0:00:03]} 37. Nxc5 {[%clk 0:00:01]}  Bc8 {[%clk 0:00:04]} 38. Nb3 {[%clk 0:00:01]}  Kf8 {[%clk 0:00:04]} 39. Bd3 {[%clk 0:00:01]}  Ke7 {[%clk 0:00:05]} 40. Kc2 {[%clk 0:00:02]}  Kf6 {[%clk 0:00:05]} 41. c5 {[%clk 0:00:02]}  Ke5 {[%clk 0:00:05]} 42. Be2 {[%clk 0:00:03]}  Bb7 {[%clk 0:00:05]} 43. Kc3 {[%clk 0:00:03]}  Bd5 {[%clk 0:00:05]} 44. Bc4 {[%clk 0:00:03]}  Bf3 {[%clk 0:00:04]} 45. Bxf7 {[%clk 0:00:03]}  Bxg4 {[%clk 0:00:04]} 46. Nd4 {[%clk 0:00:02]}  Rb2 {[%clk 0:00:05]} 47. c6 {[%clk 0:00:02]}  Kd6 {[%clk 0:00:05]} 48. Be6 {[%clk 0:00:02]}  Kc7 {[%clk 0:00:04]} 49. Bd7 {[%clk 0:00:02]}  Rb6 {[%clk 0:00:04]} 50. Ne6+ {[%clk 0:00:03]}  Kd6 {[%clk 0:00:04]} 51. Nxg7 {[%clk 0:00:03]}  Rxc6+ {[%clk 0:00:01]} 52. Bxc6 {[%clk 0:00:03]}  Kxc6 {[%clk 0:00:02]} 53. Kb3 {[%clk 0:00:04]}  Kd6 {[%clk 0:00:02]} 54. f6 {[%clk 0:00:04]} 1-0


[Site "https://www.chess.com"]

[Event "Titled Tuesday Blitz March 21 Early 2023"]
[White "Raja Rithvik R"]
[Black "Domingo Nunez, Ruben"]
[WhiteFideId "35007394"]
[BlackFideId "22245570"]
[WhiteElo "2402"]
[BlackElo "2404"]
[Result "0-1"]
[Round "04"]
[TimeControl "180+2"]
[Date "2023.03.21"]
[WhiteClock "0:00:16"]
[BlackClock "0:00:08"]

1. Nf3 {[%clk 0:03:00]}  g6 {[%clk 0:02:48]} 2. g3 {[%clk 0:03:01]}  Bg7 {[%clk 0:02:49]} 3. d4 {[%clk 0:03:01]}  Nf6 {[%clk 0:02:50]} 4. Bg2 {[%clk 0:03:01]}  O-O {[%clk 0:02:50]} 5. O-O {[%clk 0:03:02]}  d6 {[%clk 0:02:51]} 6. c4 {[%clk 0:03:03]}  Nbd7 {[%clk 0:02:52]} 7. Nc3 {[%clk 0:03:03]}  c5 {[%clk 0:02:53]} 8. b3 {[%clk 0:03:01]}  Rb8 {[%clk 0:02:53]} 9. Bb2 {[%clk 0:03:00]}  a6 {[%clk 0:02:53]} 10. Rc1 {[%clk 0:02:52]}  b5 {[%clk 0:02:53]} 11. dxc5 {[%clk 0:02:51]}  Nxc5 {[%clk 0:02:52]} 12. cxb5 {[%clk 0:02:49]}  axb5 {[%clk 0:02:53]} 13. Nd4 {[%clk 0:02:49]}  Bd7 {[%clk 0:02:53]} 14. b4 {[%clk 0:02:45]}  Ne6 {[%clk 0:02:53]} 15. Nc6 {[%clk 0:02:44]}  Bxc6 {[%clk 0:02:54]} 16. Bxc6 {[%clk 0:02:45]}  Ng4 {[%clk 0:02:54]} 17. Qb3 {[%clk 0:02:23]}  Nd4 {[%clk 0:02:53]} 18. Qd5 {[%clk 0:02:22]}  Rb6 {[%clk 0:01:43]} 19. Qe4 {[%clk 0:01:46]}  Rxc6 {[%clk 0:01:34]} 20. Qxg4 {[%clk 0:01:45]}  f5 {[%clk 0:01:35]} 21. Qh4 {[%clk 0:01:32]}  Rxc3 {[%clk 0:01:34]} 22. Bxc3 {[%clk 0:01:31]}  Nxe2+ {[%clk 0:01:34]} 23. Kg2 {[%clk 0:01:32]}  Qa8+ {[%clk 0:01:34]} 24. f3 {[%clk 0:01:31]}  Bxc3 {[%clk 0:01:04]} 25. Rc2 {[%clk 0:01:15]}  Bf6 {[%clk 0:01:04]} 26. Qh6 {[%clk 0:01:15]}  Nd4 {[%clk 0:01:00]} 27. Rd2 {[%clk 0:01:16]}  Rc8 {[%clk 0:00:46]} 28. Qe3 {[%clk 0:01:14]}  Rc4 {[%clk 0:00:38]} 29. Rfd1 {[%clk 0:01:07]}  e5 {[%clk 0:00:21]} 30. a3 {[%clk 0:01:01]}  Qc6 {[%clk 0:00:19]} 31. h4 {[%clk 0:00:53]}  Rc3 {[%clk 0:00:19]} 32. Rd3 {[%clk 0:00:54]}  Rc2+ {[%clk 0:00:19]} 33. R1d2 {[%clk 0:00:51]}  Rc1 {[%clk 0:00:16]} 34. h5 {[%clk 0:00:47]}  g5 {[%clk 0:00:16]} 35. h6 {[%clk 0:00:34]}  Kf7 {[%clk 0:00:16]} 36. Rd1 {[%clk 0:00:28]}  Rc2+ {[%clk 0:00:16]} 37. R1d2 {[%clk 0:00:28]}  g4 {[%clk 0:00:13]} 38. Rxd4 {[%clk 0:00:24]}  gxf3+ {[%clk 0:00:10]} 39. Qxf3 {[%clk 0:00:21]}  exd4 {[%clk 0:00:08]} 40. Rxc2 {[%clk 0:00:17]}  Qxc2+ {[%clk 0:00:08]} 41. Kh3 {[%clk 0:00:17]}  Qe4 {[%clk 0:00:08]} 42. Qh5+ {[%clk 0:00:18]}  Ke7 {[%clk 0:00:09]} 43. Qd1 {[%clk 0:00:16]}  d3 {[%clk 0:00:08]} 44. Qb3 {[%clk 0:00:16]}  Qh1# {[%clk 0:00:08]} 0-1


[Site "https://www.chess.com"]

[Event "Titled Tuesday Blitz March 21 Early 2023"]
[White "polandchessplayer"]
[Black "Chigaev, Maksim"]
[BlackFideId "4108116"]
[WhiteElo "2649"]
[BlackElo "2547"]
[Result "0-1"]
[Round "04"]
[TimeControl "180+2"]
[Date "2023.03.21"]
[WhiteClock "0:00:19"]
[BlackClock "0:00:09"]

1. c4 {[%clk 0:03:00]}  c6 {[%clk 0:02:57]} 2. d4 {[%clk 0:03:00]}  d5 {[%clk 0:02:57]} 3. cxd5 {[%clk 0:03:01]}  cxd5 {[%clk 0:02:57]} 4. Nc3 {[%clk 0:03:02]}  Nf6 {[%clk 0:02:56]} 5. Nf3 {[%clk 0:03:01]}  Nc6 {[%clk 0:02:56]} 6. Bf4 {[%clk 0:02:57]}  a6 {[%clk 0:02:56]} 7. e3 {[%clk 0:02:57]}  Bg4 {[%clk 0:02:57]} 8. Bd3 {[%clk 0:02:55]}  e6 {[%clk 0:02:57]} 9. O-O {[%clk 0:02:56]}  Bd6 {[%clk 0:02:57]} 10. Bg3 {[%clk 0:02:55]}  O-O {[%clk 0:02:57]} 11. Rc1 {[%clk 0:02:53]}  Rc8 {[%clk 0:02:57]} 12. Be2 {[%clk 0:02:48]}  Bxf3 {[%clk 0:02:40]} 13. Bxf3 {[%clk 0:02:49]}  Bxg3 {[%clk 0:02:38]} 14. hxg3 {[%clk 0:02:47]}  Qe7 {[%clk 0:02:31]} 15. e4 {[%clk 0:02:17]}  dxe4 {[%clk 0:02:07]} 16. Nxe4 {[%clk 0:02:18]}  Nd5 {[%clk 0:01:41]} 17. Nc5 {[%clk 0:02:08]}  Rfd8 {[%clk 0:01:40]} 18. Re1 {[%clk 0:01:50]}  a5 {[%clk 0:01:16]} 19. a3 {[%clk 0:01:46]}  h6 {[%clk 0:01:12]} 20. Qa4 {[%clk 0:01:30]}  Rb8 {[%clk 0:00:49]} 21. Qc4 {[%clk 0:00:43]}  Qf6 {[%clk 0:00:36]} 22. Nb3 {[%clk 0:00:28]}  Ra8 {[%clk 0:00:23]} 23. Red1 {[%clk 0:00:23]}  Nce7 {[%clk 0:00:19]} 24. Nc5 {[%clk 0:00:19]}  b6 {[%clk 0:00:20]} 25. Ne4 {[%clk 0:00:19]}  Qg6 {[%clk 0:00:20]} 26. g4 {[%clk 0:00:18]}  Rab8 {[%clk 0:00:19]} 27. Qe2 {[%clk 0:00:18]}  Nf6 {[%clk 0:00:13]} 28. g3 {[%clk 0:00:17]}  Ned5 {[%clk 0:00:13]} 29. Kg2 {[%clk 0:00:16]}  Nxe4 {[%clk 0:00:12]} 30. Bxe4 {[%clk 0:00:16]}  Qf6 {[%clk 0:00:12]} 31. Qf3 {[%clk 0:00:13]}  Qxf3+ {[%clk 0:00:12]} 32. Kxf3 {[%clk 0:00:14]}  Nf6 {[%clk 0:00:12]} 33. Rc2 {[%clk 0:00:14]}  Kf8 {[%clk 0:00:12]} 34. Rc6 {[%clk 0:00:10]}  Ke7 {[%clk 0:00:12]} 35. b4 {[%clk 0:00:10]}  axb4 {[%clk 0:00:09]} 36. axb4 {[%clk 0:00:11]}  Rd7 {[%clk 0:00:07]} 37. b5 {[%clk 0:00:12]}  Ra7 {[%clk 0:00:05]} 38. Rdc1 {[%clk 0:00:11]}  Ra3+ {[%clk 0:00:04]} 39. R1c3 {[%clk 0:00:12]}  Rxc3+ {[%clk 0:00:04]} 40. Rxc3 {[%clk 0:00:13]}  Rd8 {[%clk 0:00:03]} 41. Rc6 {[%clk 0:00:11]}  Rd6 {[%clk 0:00:04]} 42. Rc7+ {[%clk 0:00:11]}  Rd7 {[%clk 0:00:04]} 43. Rc6 {[%clk 0:00:12]}  Rd6 {[%clk 0:00:05]} 44. Rc7+ {[%clk 0:00:09]}  Rd7 {[%clk 0:00:03]} 45. Rc6 {[%clk 0:00:05]}  Rxd4 {[%clk 0:00:03]} 46. Bc2 {[%clk 0:00:05]}  Rd6 {[%clk 0:00:03]} 47. Rc7+ {[%clk 0:00:05]}  Rd7 {[%clk 0:00:03]} 48. Rc6 {[%clk 0:00:05]}  Rb7 {[%clk 0:00:03]} 49. Be4 {[%clk 0:00:05]}  Rb8 {[%clk 0:00:02]} 50. Rc7+ {[%clk 0:00:05]}  Kf8 {[%clk 0:00:03]} 51. Rc6 {[%clk 0:00:05]}  Ne8 {[%clk 0:00:03]} 52. Kf4 {[%clk 0:00:04]}  Ke7 {[%clk 0:00:04]} 53. Ke5 {[%clk 0:00:05]}  Kd7 {[%clk 0:00:04]} 54. Kd4 {[%clk 0:00:04]}  Nd6 {[%clk 0:00:04]} 55. Bd3 {[%clk 0:00:05]}  f6 {[%clk 0:00:04]} 56. f4 {[%clk 0:00:05]}  g5 {[%clk 0:00:03]} 57. Rc3 {[%clk 0:00:05]}  Rd8 {[%clk 0:00:03]} 58. Rc6 {[%clk 0:00:05]}  Ke7 {[%clk 0:00:03]} 59. Ke3 {[%clk 0:00:05]}  Rb8 {[%clk 0:00:03]} 60. Rc7+ {[%clk 0:00:05]}  Kf8 {[%clk 0:00:03]} 61. Rh7 {[%clk 0:00:06]}  Re8 {[%clk 0:00:02]} 62. Rh8+ {[%clk 0:00:05]}  Ke7 {[%clk 0:00:02]} 63. Rxh6 {[%clk 0:00:05]}  Rf8 {[%clk 0:00:02]} 64. Rh7+ {[%clk 0:00:05]}  Rf7 {[%clk 0:00:02]} 65. Rh8 {[%clk 0:00:06]}  Rf8 {[%clk 0:00:03]} 66. Rh1 {[%clk 0:00:07]}  Rd8 {[%clk 0:00:03]} 67. Rh7+ {[%clk 0:00:07]}  Kf8 {[%clk 0:00:02]} 68. Rc7 {[%clk 0:00:05]}  Rc8 {[%clk 0:00:02]} 69. Rd7 {[%clk 0:00:04]}  Ne8 {[%clk 0:00:02]} 70. Bg6 {[%clk 0:00:02]}  Nc7 {[%clk 0:00:02]} 71. Rf7+ {[%clk 0:00:02]}  Kg8 {[%clk 0:00:03]} 72. Rxf6 {[%clk 0:00:03]}  Nd5+ {[%clk 0:00:03]} 73. Ke4 {[%clk 0:00:03]}  Nxf6+ {[%clk 0:00:04]} 74. Ke5 {[%clk 0:00:03]}  Kg7 {[%clk 0:00:05]} 75. Bd3 {[%clk 0:00:03]}  Nxg4+ {[%clk 0:00:05]} 76. Kxe6 {[%clk 0:00:03]}  gxf4 {[%clk 0:00:06]} 77. gxf4 {[%clk 0:00:03]}  Rd8 {[%clk 0:00:05]} 78. Be2 {[%clk 0:00:03]}  Nf6 {[%clk 0:00:06]} 79. f5 {[%clk 0:00:03]}  Re8+ {[%clk 0:00:06]} 80. Kd6 {[%clk 0:00:04]}  Rxe2 {[%clk 0:00:07]} 81. Kc6 {[%clk 0:00:05]}  Re5 {[%clk 0:00:05]} 82. Kxb6 {[%clk 0:00:06]}  Nd5+ {[%clk 0:00:05]} 83. Kc6 {[%clk 0:00:06]}  Nb4+ {[%clk 0:00:05]} 84. Kd6 {[%clk 0:00:04]}  Rxb5 {[%clk 0:00:05]} 85. Ke6 {[%clk 0:00:03]}  Kf8 {[%clk 0:00:05]} 86. f6 {[%clk 0:00:04]}  Nd5 {[%clk 0:00:05]} 87. Kf5 {[%clk 0:00:04]}  Nxf6+ {[%clk 0:00:05]} 88. Kg6 {[%clk 0:00:05]}  Nd7 {[%clk 0:00:04]} 89. Kh7 {[%clk 0:00:06]}  Ke7 {[%clk 0:00:04]} 90. Kh8 {[%clk 0:00:07]}  Rg5 {[%clk 0:00:04]} 91. Kh7 {[%clk 0:00:07]}  Nf8+ {[%clk 0:00:04]} 92. Kh6 {[%clk 0:00:08]}  Rg6+ {[%clk 0:00:05]} 93. Kh5 {[%clk 0:00:09]}  Ra6 {[%clk 0:00:05]} 94. Kh4 {[%clk 0:00:10]}  Kf6 {[%clk 0:00:06]} 95. Kh5 {[%clk 0:00:11]}  Ng6 {[%clk 0:00:07]} 96. Kg4 {[%clk 0:00:11]}  Ra5 {[%clk 0:00:07]} 97. Kf3 {[%clk 0:00:12]}  Rf5+ {[%clk 0:00:08]} 98. Ke4 {[%clk 0:00:13]}  Re5+ {[%clk 0:00:08]} 99. Kd3 {[%clk 0:00:14]}  Re7 {[%clk 0:00:09]} 100. Kc4 {[%clk 0:00:15]}  Ke5 {[%clk 0:00:10]} 101. Kc5 {[%clk 0:00:13]}  Rc7+ {[%clk 0:00:10]} 102. Kb6 {[%clk 0:00:14]}  Kd6 {[%clk 0:00:10]} 103. Kb5 {[%clk 0:00:15]}  Ne5 {[%clk 0:00:10]} 104. Kb4 {[%clk 0:00:15]}  Rc5 {[%clk 0:00:10]} 105. Ka4 {[%clk 0:00:16]}  Kc6 {[%clk 0:00:10]} 106. Kb4 {[%clk 0:00:16]}  Rc4+ {[%clk 0:00:10]} 107. Kb3 {[%clk 0:00:17]}  Kb5 {[%clk 0:00:10]} 108. Ka3 {[%clk 0:00:16]}  Rb4 {[%clk 0:00:10]} 109. Ka2 {[%clk 0:00:17]}  Kc4 {[%clk 0:00:10]} 110. Ka3 {[%clk 0:00:18]}  Rb6 {[%clk 0:00:09]} 111. Ka4 {[%clk 0:00:19]}  Ra6# {[%clk 0:00:09]} 0-1


[Site "https://www.chess.com"]

[Event "Titled Tuesday Blitz March 21 Early 2023"]
[White "Amilal Munkhdalai"]
[Black "Costachi, Mihnea"]
[WhiteFideId "4903250"]
[BlackFideId "1217518"]
[WhiteElo "2293"]
[BlackElo "2456"]
[Result "0-1"]
[Round "04"]
[TimeControl "180+2"]
[Date "2023.03.21"]
[WhiteClock "0:00:01"]
[BlackClock "0:01:24"]

1. e4 {[%clk 0:03:00]}  e5 {[%clk 0:02:58]} 2. Nf3 {[%clk 0:03:01]}  Nc6 {[%clk 0:02:58]} 3. Bb5 {[%clk 0:03:01]}  a6 {[%clk 0:02:58]} 4. Ba4 {[%clk 0:03:01]}  d6 {[%clk 0:02:59]} 5. c3 {[%clk 0:02:57]}  Bd7 {[%clk 0:02:59]} 6. O-O {[%clk 0:02:57]}  g6 {[%clk 0:03:00]} 7. d4 {[%clk 0:02:56]}  Bg7 {[%clk 0:03:00]} 8. d5 {[%clk 0:02:56]}  Nce7 {[%clk 0:03:00]} 9. Bxd7+ {[%clk 0:02:57]}  Qxd7 {[%clk 0:03:01]} 10. c4 {[%clk 0:02:57]}  h6 {[%clk 0:03:02]} 11. Nc3 {[%clk 0:02:57]}  f5 {[%clk 0:03:02]} 12. Re1 {[%clk 0:02:57]}  f4 {[%clk 0:03:01]} 13. b4 {[%clk 0:02:51]}  Nf6 {[%clk 0:02:59]} 14. c5 {[%clk 0:02:48]}  O-O {[%clk 0:03:00]} 15. cxd6 {[%clk 0:02:45]}  cxd6 {[%clk 0:03:00]} 16. Na4 {[%clk 0:02:44]}  Qd8 {[%clk 0:02:52]} 17. Qb3 {[%clk 0:02:43]}  g5 {[%clk 0:02:50]} 18. h3 {[%clk 0:02:43]}  Ng6 {[%clk 0:02:47]} 19. Bb2 {[%clk 0:02:11]}  Nd7 {[%clk 0:02:39]} 20. Rec1 {[%clk 0:02:03]}  h5 {[%clk 0:02:38]} 21. Qc2 {[%clk 0:02:00]}  g4 {[%clk 0:02:37]} 22. hxg4 {[%clk 0:02:00]}  hxg4 {[%clk 0:02:38]} 23. Nd2 {[%clk 0:02:01]}  g3 {[%clk 0:02:30]} 24. Nf3 {[%clk 0:02:00]}  Nh4 {[%clk 0:02:29]} 25. Qe2 {[%clk 0:01:21]}  Rf7 {[%clk 0:02:29]} 26. Kf1 {[%clk 0:01:16]}  Bf8 {[%clk 0:02:25]} 27. Nxh4 {[%clk 0:01:06]}  Qxh4 {[%clk 0:02:25]} 28. Qf3 {[%clk 0:01:06]}  gxf2 {[%clk 0:02:18]} 29. Qxf2 {[%clk 0:01:05]}  Qg5 {[%clk 0:02:15]} 30. Ke2 {[%clk 0:00:53]}  Rg7 {[%clk 0:02:13]} 31. Rg1 {[%clk 0:00:32]}  Nf6 {[%clk 0:02:13]} 32. Qf3 {[%clk 0:00:30]}  Nh5 {[%clk 0:01:59]} 33. Rac1 {[%clk 0:00:25]}  Qg6 {[%clk 0:01:56]} 34. Nb6 {[%clk 0:00:20]}  Rd8 {[%clk 0:01:52]} 35. Kd3 {[%clk 0:00:20]}  Qf7 {[%clk 0:01:48]} 36. Kc2 {[%clk 0:00:18]}  Rg3 {[%clk 0:01:48]} 37. Qf2 {[%clk 0:00:14]}  Nf6 {[%clk 0:01:48]} 38. Rce1 {[%clk 0:00:12]}  Qg6 {[%clk 0:01:46]} 39. Kb1 {[%clk 0:00:08]}  Nxe4 {[%clk 0:01:46]} 40. Qc2 {[%clk 0:00:08]}  Nf6 {[%clk 0:01:37]} 41. Qxg6+ {[%clk 0:00:07]}  Rxg6 {[%clk 0:01:38]} 42. Rc1 {[%clk 0:00:07]}  Rg7 {[%clk 0:01:35]} 43. a4 {[%clk 0:00:06]}  Nd7 {[%clk 0:01:31]} 44. Nxd7 {[%clk 0:00:06]}  Rdxd7 {[%clk 0:01:31]} 45. Rc8 {[%clk 0:00:05]}  Kf7 {[%clk 0:01:32]} 46. Rgc1 {[%clk 0:00:02]}  Rxg2 {[%clk 0:01:27]} 47. b5 {[%clk 0:00:02]}  axb5 {[%clk 0:01:26]} 48. axb5 {[%clk 0:00:03]}  f3 {[%clk 0:01:27]} 49. b6 {[%clk 0:00:03]}  f2 {[%clk 0:01:27]} 50. R8c2 {[%clk 0:00:01]}  Bh6 {[%clk 0:01:24]} 51. Re2 {[%clk 0:00:02]}  Bxc1 {[%clk 0:01:24]} 52. Bxc1 {[%clk 0:00:01]}  f1=Q {[%clk 0:01:24]} 0-1


[Site "https://www.chess.com"]

[Event "Titled Tuesday Blitz March 21 Early 2023"]
[White "Skliarov, Viktor"]
[Black "Yeletsky, Ivan"]
[WhiteFideId "14106736"]
[BlackFideId "24180327"]
[WhiteElo "2289"]
[BlackElo "2414"]
[Result "0-1"]
[Round "04"]
[TimeControl "180+2"]
[Date "2023.03.21"]
[WhiteClock "0:00:10"]
[BlackClock "0:00:34"]

1. e4 {[%clk 0:03:00]}  c6 {[%clk 0:02:59]} 2. d4 {[%clk 0:03:00]}  d5 {[%clk 0:02:59]} 3. e5 {[%clk 0:03:01]}  c5 {[%clk 0:02:57]} 4. Nf3 {[%clk 0:03:00]}  cxd4 {[%clk 0:02:57]} 5. Qxd4 {[%clk 0:03:01]}  Nc6 {[%clk 0:02:57]} 6. Qf4 {[%clk 0:03:01]}  e6 {[%clk 0:02:54]} 7. Bd3 {[%clk 0:03:00]}  Nb4 {[%clk 0:02:53]} 8. O-O {[%clk 0:02:56]}  Nxd3 {[%clk 0:02:53]} 9. cxd3 {[%clk 0:02:57]}  Ne7 {[%clk 0:02:51]} 10. Nc3 {[%clk 0:02:56]}  Bd7 {[%clk 0:02:51]} 11. Ng5 {[%clk 0:02:45]}  Nf5 {[%clk 0:02:51]} 12. g4 {[%clk 0:02:42]}  Nh6 {[%clk 0:02:45]} 13. h3 {[%clk 0:02:32]}  Be7 {[%clk 0:02:34]} 14. Nf3 {[%clk 0:02:28]}  O-O {[%clk 0:02:27]} 15. Qg3 {[%clk 0:02:27]}  Kh8 {[%clk 0:02:27]} 16. Kh2 {[%clk 0:02:02]}  f5 {[%clk 0:02:08]} 17. exf6 {[%clk 0:01:54]}  Rxf6 {[%clk 0:02:07]} 18. Ne5 {[%clk 0:01:36]}  Nf7 {[%clk 0:01:36]} 19. Nxf7+ {[%clk 0:01:21]}  Rxf7 {[%clk 0:01:37]} 20. Bf4 {[%clk 0:01:21]}  Bc6 {[%clk 0:01:09]} 21. Be5 {[%clk 0:01:11]}  Bh4 {[%clk 0:01:08]} 22. Qe3 {[%clk 0:01:08]}  d4 {[%clk 0:01:06]} 23. Qxd4 {[%clk 0:00:57]}  Qxd4 {[%clk 0:01:05]} 24. Bxd4 {[%clk 0:00:57]}  Rd8 {[%clk 0:01:05]} 25. Bxa7 {[%clk 0:00:47]}  Rxd3 {[%clk 0:01:01]} 26. Rad1 {[%clk 0:00:46]}  Rdf3 {[%clk 0:01:02]} 27. Rd2 {[%clk 0:00:37]}  h6 {[%clk 0:00:57]} 28. Bd4 {[%clk 0:00:33]}  Bg3+ {[%clk 0:00:55]} 29. Kg1 {[%clk 0:00:32]}  Bf4 {[%clk 0:00:55]} 30. Re2 {[%clk 0:00:15]}  Rxh3 {[%clk 0:00:55]} 31. f3 {[%clk 0:00:15]}  Bxf3 {[%clk 0:00:52]} 32. Rxf3 {[%clk 0:00:16]}  Rxf3 {[%clk 0:00:53]} 33. Ne4 {[%clk 0:00:16]}  e5 {[%clk 0:00:50]} 34. Kg2 {[%clk 0:00:16]}  Rd3 {[%clk 0:00:40]} 35. Bc3 {[%clk 0:00:15]}  Kh7 {[%clk 0:00:40]} 36. a4 {[%clk 0:00:14]}  b6 {[%clk 0:00:35]} 37. Nf2 {[%clk 0:00:13]}  Rg3+ {[%clk 0:00:34]} 38. Kh1 {[%clk 0:00:11]}  Be3 {[%clk 0:00:31]} 39. Bxe5 {[%clk 0:00:06]}  Rxf2 {[%clk 0:00:31]} 40. Rxf2 {[%clk 0:00:06]}  Bxf2 {[%clk 0:00:31]} 41. Bxg3 {[%clk 0:00:07]}  Bxg3 {[%clk 0:00:32]} 42. b4 {[%clk 0:00:08]}  Be1 {[%clk 0:00:32]} 43. a5 {[%clk 0:00:08]}  bxa5 {[%clk 0:00:33]} 44. bxa5 {[%clk 0:00:08]}  Bxa5 {[%clk 0:00:33]} 45. Kg2 {[%clk 0:00:09]}  Kg6 {[%clk 0:00:33]} 46. Kh3 {[%clk 0:00:09]}  Kg5 {[%clk 0:00:34]} 47. Kg3 {[%clk 0:00:10]}  Bc7+ {[%clk 0:00:34]} 48. Kh3 {[%clk 0:00:10]}  Bd6 {[%clk 0:00:34]} 0-1


[Site "https://www.chess.com"]

[Event "Titled Tuesday Blitz March 21 Early 2023"]
[White "Budrewicz, Krzysztof"]
[Black "Kravtsiv, Martyn"]
[WhiteFideId "1127950"]
[BlackFideId "14113147"]
[WhiteElo "2230"]
[BlackElo "2695"]
[Result "0-1"]
[Round "04"]
[TimeControl "180+2"]
[Date "2023.03.21"]
[WhiteClock "0:02:00"]
[BlackClock "0:01:34"]

1. d4 {[%clk 0:02:54]}  Nf6 {[%clk 0:02:57]} 2. c4 {[%clk 0:02:54]}  g6 {[%clk 0:02:56]} 3. Nc3 {[%clk 0:02:54]}  Bg7 {[%clk 0:02:55]} 4. g3 {[%clk 0:02:54]}  c6 {[%clk 0:02:53]} 5. Bg2 {[%clk 0:02:55]}  d5 {[%clk 0:02:53]} 6. cxd5 {[%clk 0:02:55]}  cxd5 {[%clk 0:02:53]} 7. Nf3 {[%clk 0:02:55]}  O-O {[%clk 0:02:52]} 8. O-O {[%clk 0:02:56]}  b6 {[%clk 0:02:51]} 9. Bf4 {[%clk 0:02:56]}  Bb7 {[%clk 0:02:51]} 10. Ne5 {[%clk 0:02:56]}  Nfd7 {[%clk 0:02:48]} 11. Nd3 {[%clk 0:02:53]}  e6 {[%clk 0:02:41]} 12. Bd6 {[%clk 0:02:48]}  Re8 {[%clk 0:02:39]} 13. e3 {[%clk 0:02:47]}  Na6 {[%clk 0:02:38]} 14. Rc1 {[%clk 0:02:45]}  Ndb8 {[%clk 0:02:33]} 15. Ba3 {[%clk 0:02:36]}  Nc6 {[%clk 0:02:31]} 16. Nb5 {[%clk 0:02:33]}  Bf8 {[%clk 0:02:31]} 17. Bxf8 {[%clk 0:02:31]}  Rxf8 {[%clk 0:02:31]} 18. a3 {[%clk 0:02:30]}  Rc8 {[%clk 0:02:27]} 19. Qa4 {[%clk 0:02:23]}  Ra8 {[%clk 0:01:40]} 20. Rc3 {[%clk 0:02:17]}  Nab8 {[%clk 0:01:40]} 21. Rc2 {[%clk 0:02:09]}  a6 {[%clk 0:01:39]} 22. Nc3 {[%clk 0:02:09]}  Nd7 {[%clk 0:01:33]} 23. b3 {[%clk 0:02:01]}  b5 {[%clk 0:01:33]} 24. Nxb5 {[%clk 0:01:59]}  axb5 {[%clk 0:01:34]} 25. Qxb5 {[%clk 0:02:00]}  Ba6 {[%clk 0:01:34]} 26. Qxc6 {[%clk 0:02:00]}  Bxd3 {[%clk 0:01:34]} 0-1


[Site "https://www.chess.com"]